fUST/lending_fUST_20250824
["ID","MTS","AMOUNT","RATE_DAILY","PERIOD"]
[381112565,1756050646824,-981.04828401,0.00030462,2]
[381112566,1756050646835,-188.83705339,0.00030462,2]
[381112567,1756050646845,-1394.04328881,0.00030462,2]
[381112568,1756050646855,-5883.26239625,0.00030462,2]
[381112569,1756050646865,-10664.47093981,0.00030462,2]
[381112570,1756050646874,-5204.12,0.00030462,2]
[381112571,1756050646885,-650.04705114,0.00030462,2]
[381112572,1756050646894,-902.90035199,0.00030462,2]
[381112573,1756050646905,-500.0,0.00030462,3]
[381112574,1756050646915,-475.05422047,0.00030462,2]
[381112575,1756050646924,-2920.0,0.00030462,2]
[381112576,1756050646934,-153.68908304,0.00030462,7]
[381112577,1756050646944,-967.71777086,0.00030462,7]
[381112578,1756050646953,-163.0157558,0.00030462,2]
[381112579,1756050646965,-2011.15846609,0.00030462,2]
[381112580,1756050646978,-565.70692019,0.00030462,2]
[381112581,1756050646987,-384.32187579,0.00030462,2]
[381112582,1756050646997,-201.10306259,0.00030462,2]
[381112583,1756050647007,-3141.94372328,0.00030462,2]
[381112584,1756050647018,-2344.0878299,0.00030462,2]
[381112585,1756050647034,-166.30596331,0.00030462,2]
[381112586,1756050647044,-100069.79748373,0.00030462,2]
[381112587,1756050647054,-150.07283096,0.00030462,2]
[381112588,1756050647065,-1000.75222814,0.00030462,14]
[381112589,1756050647080,-818.30161912,0.00030462,2]
[381112590,1756050647090,-169.49,0.00030462,2]
[381112591,1756050647100,-172140.90882221,0.00030466,15]
[381112592,1756050647111,-151.854492,0.00030466,7]
[381112593,1756050647123,-151.0,0.00030466,7]
[381112594,1756050647136,-151.0,0.00030466,7]
[381112595,1756050647145,-151.0,0.00030466,7]
[381112596,1756050647157,-151.0,0.00030466,7]
[381112597,1756050647167,-215.144358,0.00030466,7]
[381112598,1756050647176,-151.0,0.00030466,7]
[381112599,1756050647186,-151.0,0.00030466,7]
[381112600,1756050647196,-151.0,0.00030466,7]
[381112601,1756050647205,-171.822307,0.00030466,7]
[381112602,1756050647215,-151.0,0.00030466,7]
[381112603,1756050647224,-152.778142,0.00030467,7]
[381112604,1756050647234,-151.0,0.00030467,7]
[381112605,1756050647244,-151.0,0.00030467,7]
[381112606,1756050647254,-151.0,0.00030467,7]
[381112607,1756050647265,-151.0,0.00030467,7]
[381112608,1756050647276,-151.0,0.00030467,7]
[381112609,1756050647286,-151.0,0.00030467,7]
[381112610,1756050647296,-151.0,0.00030467,7]
[381112611,1756050647307,-196.424784,0.00030467,7]
[381112612,1756050647317,-500.0,0.00030473,5]
[381112613,1756050647326,-171.36,0.00030481,30]
[381112614,1756050647336,-5000.0,0.00030482,3]
[381112615,1756050647346,-3718.25734263,0.00030496,4]
[381112616,1756050647356,-2066.48,0.000305,2]
[381112617,1756050647367,-3155.69,0.000305,7]
[381112618,1756050647377,-164.11,0.000305,7]
[381112619,1756050647387,-1000.0,0.000305,3]
[381112620,1756050647397,-500.0,0.00030504,30]
[381112621,1756050647407,-625.19,0.0003057,15]
[381112622,1756050647417,-160.0,0.00030602,2]
[381112623,1756050647427,-844.67759735,0.00030602,2]
[381112624,1756050647437,-625.19,0.0003067,15]
[381112625,1756050647447,-6000.0,0.0003068,3]
[381112626,1756050647457,-232.42214577,0.0003068,3]
[381112627,1756050647466,-6003.52422016,0.0003076,2]
[381112628,1756050647476,-625.19,0.0003077,15]
[381112629,1756050647485,-379.4382593,0.000308,120]
[381112630,1756050647495,-160.0,0.00030839,2]
[381112631,1756050647504,-12698.53451425,0.00030856,2]
[381112632,1756050647514,-217.07852671,0.00030869,2]
[381112633,1756050647524,-215.99145658,0.00030869,2]
[381112634,1756050647534,-160.0,0.00030869,2]
[381112635,1756050647544,-625.19,0.0003087,15]
[381112636,1756050647553,-232.42214577,0.00030891,2]
[381112637,1756050647563,-160.0,0.00030891,2]
[381112638,1756050647572,-376.22310801,0.00030891,2]
[381112639,1756050647581,-200.0,0.00030938,120]
[381112640,1756050647591,-2000.0,0.00030942,3]
[381112641,1756050647600,-625.263,0.0003097,15]
[381112642,1756050647609,-205.55,0.00030975,15]
[381112643,1756050647619,-302.574638,0.0003099,2]
[381112644,1756050647629,-350.0,0.00031,60]
[381112645,1756050647639,-155.0,0.00031,120]
[381112646,1756050647649,-168.0,0.00031,120]
[381112647,1756050647659,-1000.0,0.00031021,5]
[381112648,1756050647668,-748.98966701,0.00031026,2]
[381112649,1756050647678,-5000.0,0.00031026,3]
[381112650,1756050647696,-205.55,0.00031075,15]
[381112651,1756050647714,-232.42214577,0.000311,7]
[381112652,1756050647727,-205.55,0.00031175,15]
[381112653,1756050647743,-205.55,0.00031275,15]
[381112654,1756050647761,-5000.0,0.00031286,3]
[381112655,1756050647780,-161.68441,0.00031315,2]
[381112656,1756050647798,-205.55,0.00031375,15]
[381112657,1756050647813,-250.0,0.00031433,2]
[381112658,1756050647827,-205.55,0.00031475,15]
[381112659,1756050647842,-205.55,0.00031575,15]
[381112660,1756050647857,-205.55,0.00031675,15]
[381112661,1756050647870,-205.55,0.00031775,15]
[381112662,1756050647883,-2066.48,0.000318,2]
[381112663,1756050647897,-3155.69,0.000318,7]
[381112664,1756050647912,-205.55,0.00031875,15]
[381112665,1756050647926,-6003.52422016,0.0003189,2]
[381112666,1756050647943,-4257.13534005,0.000319,2]
[381112667,1756050647958,-164.11,0.000319,7]
[381112668,1756050647970,-165.3982182,0.00031914,30]
[381112669,1756050647984,-205.55,0.00031975,15]
[381112670,1756050648000,-270.05852784,0.00031986,17]
[381112671,1756050648012,-205.55,0.00032075,15]
[381112672,1756050648027,-205.55,0.00032175,15]
[381112673,1756050648041,-205.55,0.00032275,15]
[381112674,1756050648053,-205.55,0.00032375,15]
[381112675,1756050648067,-200.0,0.00032423,120]
[381112676,1756050648083,-205.55,0.00032475,15]
[381112677,1756050648101,-205.55,0.00032575,15]
[381112678,1756050648116,-205.55,0.00032675,15]
[381112679,1756050648129,-200.0,0.00032681,120]
[381112680,1756050648143,-205.55,0.00032775,15]
[381112681,1756050648157,-387.1230367,0.00032782,30]
[381112682,1756050648170,-387.1230367,0.00032782,30]
[381112683,1756050648183,-387.1230367,0.00032782,30]
[381112684,1756050648196,-387.1230367,0.00032782,30]
[381112685,1756050648210,-387.1230367,0.00032782,30]
[381112686,1756050648223,-387.1230367,0.00032782,30]
[381112687,1756050648237,-387.1230367,0.00032782,30]
[381112688,1756050648251,-387.1230367,0.00032782,30]
[381112689,1756050648264,-199.0,0.0003281,120]
[381112690,1756050648279,-205.55,0.00032875,15]
[381112691,1756050648292,-500.0,0.00032876,120]
[381112692,1756050648305,-300.0,0.00032877,120]
[381112693,1756050648318,-200.0,0.00032878,120]
[381112694,1756050648332,-205.55,0.00032975,60]
[381112695,1756050648345,-1000.0,0.00033,120]
[381112696,1756050648358,-200.0,0.00033046,120]
[381112697,1756050648371,-200.0,0.00033074,120]
[381112698,1756050648383,-205.55,0.00033075,60]
[381112699,1756050648397,-2066.48,0.000331,14]
[381112700,1756050648410,-3155.69,0.000331,14]
[381112701,1756050648422,-205.55,0.00033175,60]
[381112702,1756050648436,-200.0,0.00033178,120]
[381112703,1756050648449,-155.0,0.000332,120]
[381112704,1756050648461,-205.55,0.00033275,60]
[381112705,1756050648474,-200.0,0.00033278,120]
[381112706,1756050648487,-164.11,0.000333,7]
[381112707,1756050648500,-404.4103887,0.0003333,30]
[381112708,1756050648512,-321.2713938,0.0003333,30]
[381112709,1756050648526,-153.0,0.0003333,30]
[381112710,1756050648539,-581.4954003,0.0003333,30]
[381112711,1756050648551,-153.0,0.0003333,30]
[381112712,1756050648564,-581.4954003,0.0003333,30]
[381112713,1756050648578,-581.4954003,0.0003333,30]
[381112714,1756050648591,-153.0,0.0003333,30]
[381112715,1756050648604,-205.55,0.00033375,60]
[381112716,1756050648617,-901.63231709,0.00033407,2]
[381112717,1756050648630,-205.55,0.00033475,60]
[381112718,1756050648643,-200.84107064,0.000335,2]
[381112719,1756050648656,-205.55,0.00033575,60]
[381112720,1756050648669,-200.0,0.00033579,120]
[381112721,1756050648682,-1763.0,0.00033604,7]
[381112722,1756050648694,-1763.0,0.00033604,7]
[381112723,1756050648707,-1763.0,0.00033604,7]
[381112724,1756050648720,-1763.0,0.00033604,7]
[381112725,1756050648733,-1763.0,0.00033604,7]
[381112726,1756050648746,-1763.0,0.00033604,7]
[381112727,1756050648759,-200.0,0.00033635,120]
[381112728,1756050648773,-205.55,0.00033675,60]
[381112729,1756050648786,-270.05852784,0.00033712,21]
[381112730,1756050648799,-205.55,0.00033775,60]
[381112731,1756050648812,-205.55,0.00033875,60]
[381112732,1756050648825,-200.0,0.00033913,120]
[381112733,1756050648837,-205.55,0.00033975,60]
[381112734,1756050648851,-400.0,0.00034,120]
[381112735,1756050648864,-205.55,0.00034075,60]
[381112736,1756050648876,-205.55,0.00034175,60]
[381112737,1756050648889,-500.0,0.00034246,120]
[381112738,1756050648902,-205.55,0.00034275,60]
[381112739,1756050648916,-200.0,0.00034299,120]
[381112740,1756050648929,-205.55,0.00034375,60]
[381112741,1756050648942,-2066.48,0.000344,14]
[381112742,1756050648955,-3155.69,0.000344,14]
[381112743,1756050648968,-205.55,0.00034475,60]
[381112744,1756050648981,-376.175457,0.00034521,120]
[381112745,1756050648994,-500.0,0.00034534,5]
[381112746,1756050649007,-205.55,0.00034575,60]
[381112747,1756050649021,-205.55,0.00034675,60]
[381112748,1756050649036,-164.11,0.000347,7]
[381112749,1756050649048,-205.55,0.00034775,60]
[381112750,1756050649062,-205.55,0.00034875,60]
[381112751,1756050649078,-205.55,0.00034975,60]
[381112752,1756050649090,-6003.52422016,0.0003498,2]
[381112753,1756050649103,-1041.73663687,0.00035,120]
[381112754,1756050649117,-1637.9491197,0.00035,120]
[381112755,1756050649130,-300.0,0.00035,120]
[381112756,1756050649145,-317.18857379,0.00035,120]
[381112757,1756050649157,-200.0,0.00035,120]
[381112758,1756050649171,-16000.0,0.00035,120]
[381112759,1756050649185,-529.17068775,0.00035,120]
[381112760,1756050649198,-232.42214577,0.00035,120]
[381112761,1756050649212,-417.15472785,0.00035,120]
[381112762,1756050649225,-205.55,0.00035075,60]
[381112763,1756050649238,-205.55,0.00035175,60]
[381112764,1756050649251,-205.55,0.00035275,60]
[381112765,1756050649264,-205.55,0.00035375,60]
[381112766,1756050649278,-155.0,0.000354,120]
[381112767,1756050649292,-270.05852784,0.00035439,24]
[381112768,1756050649304,-205.55,0.00035475,60]
[381112769,1756050649317,-161.68441,0.00035476,60]
[381112770,1756050649330,-205.55,0.00035575,60]
[381112771,1756050649340,-200.0,0.00035607,120]
[381112772,1756050649349,-200.0,0.00035611,120]
[381112773,1756050649360,-500.0,0.00035616,120]
[381112774,1756050649369,-300.0,0.00035616,120]
[381112775,1756050649379,-161.68441,0.00035672,5]
[381112776,1756050649388,-205.55,0.00035675,60]
[381112777,1756050649398,-3155.69,0.000357,14]
[381112778,1756050649407,-200.0,0.00035759,120]
[381112779,1756050649417,-205.55,0.00035775,60]
[381112780,1756050649427,-205.55,0.00035875,60]
[381112781,1756050649436,-200.0,0.00035881,120]
[381112782,1756050649446,-205.55,0.00035975,60]
[381112783,1756050649456,-501.7943604,0.00036,120]
[381112784,1756050649465,-200.0,0.00036,120]
[381112785,1756050649475,-205.55,0.00036075,60]
[381112786,1756050649485,-164.11,0.000361,7]
[381112787,1756050649801,-160.950763,0.00036115,2]
[381112788,1756050649834,-200.0,0.00036144,120]
[381112789,1756050649855,-205.55,0.00036175,60]
[381112790,1756050649866,-205.55,0.00036275,60]
[381112791,1756050649875,-200.0,0.000363,120]
[381112792,1756050649885,-500.0,0.00036351,5]
[381112793,1756050649895,-205.55,0.00036375,60]
[381112794,1756050649904,-901.63231709,0.00036453,2]
[381112795,1756050649914,-205.55,0.00036475,60]
[381112796,1756050649924,-200.0,0.00036495,120]
[381112797,1756050649934,-641.0408996,0.000365,120]
[381112798,1756050649943,-200.0,0.00036569,120]
[381112799,1756050649953,-205.55,0.00036575,60]
[381112800,1756050649962,-151.0,0.00036632,2]
[381112801,1756050649972,-151.0,0.00036632,2]
[381112802,1756050649982,-151.0,0.00036632,2]
[381112803,1756050649991,-151.0,0.00036632,2]
[381112804,1756050650001,-151.0,0.00036632,2]
[381112805,1756050650012,-151.0,0.00036632,2]
[381112806,1756050650023,-151.0,0.00036632,2]
[381112807,1756050650033,-151.0,0.00036632,2]
[381112808,1756050650042,-300.0,0.00036632,2]
[381112809,1756050650052,-151.0,0.00036632,2]
[381112810,1756050650061,-151.0,0.00036632,2]
[381112811,1756050650077,-201.93286099,0.00036632,2]
[381112812,1756050650086,-300.0,0.00036632,2]
[381112813,1756050650095,-155.0,0.00036632,2]
[381112814,1756050650105,-151.0,0.00036632,2]
[381112815,1756050650116,-151.0,0.00036632,2]
[381112816,1756050650125,-151.0,0.00036632,2]
[381112817,1756050650135,-500.0,0.00036632,2]
[381112818,1756050650146,-500.0,0.00036632,2]
[381112819,1756050650155,-500.0,0.00036632,2]
[381112820,1756050650164,-500.0,0.00036632,2]
[381112821,1756050650174,-500.0,0.00036632,2]
[381112822,1756050650183,-500.0,0.00036632,2]
[381112823,1756050650193,-500.0,0.00036632,2]
[381112824,1756050650202,-500.0,0.00036632,2]
[381112825,1756050650211,-500.0,0.00036632,2]
[381112826,1756050650221,-516.40628608,0.00036632,2]
[381112827,1756050650231,-200.13064809,0.00036632,2]
[381112828,1756050650241,-205.55,0.00036675,60]
[381112829,1756050650252,-205.55,0.00036775,60]
[381112830,1756050650262,-205.55,0.00036875,60]
[381112831,1756050650272,-200.0,0.00036887,120]
[381112832,1756050650282,-205.55,0.00036975,60]
[381112833,1756050650291,-500.0,0.00036986,120]
[381112834,1756050650300,-2066.48,0.00037,14]
[381112835,1756050650309,-3155.69,0.00037,14]
[381112836,1756050650319,-205.55,0.00037075,60]
[381112837,1756050650329,-6003.52422016,0.0003709,3]
[381112838,1756050650339,-270.05852784,0.00037166,28]
[381112839,1756050650348,-205.55,0.00037175,60]
[381112840,1756050650358,-205.55,0.00037275,60]
[381112841,1756050650367,-200.0,0.00037284,120]
[381112842,1756050650377,-205.55,0.00037375,60]
[381112843,1756050650387,-6003.52422016,0.0003749,3]
[381112844,1756050650396,-4311.71,0.000375,4]
[381112845,1756050650405,-200.0,0.000375,120]
[381112846,1756050650415,-17667.17,0.000375,4]
[381112847,1756050650424,-15054.0,0.000375,30]
[381112848,1756050650434,-164.11,0.000375,7]
[381112849,1756050650444,-205.55,0.00037575,60]
[381112850,1756050650454,-155.0,0.000376,120]
[381112851,1756050650463,-205.97325,0.00037675,60]
[381112852,1756050650472,-200.0,0.00037711,120]
[381112853,1756050650481,-200.0,0.00037711,120]
[381112854,1756050650491,-200.0,0.00037902,120]
[381112855,1756050650499,-303.24261096,0.00038,30]
[381112856,1756050650509,-400.0,0.00038,120]
[381112857,1756050650518,-529.17068775,0.00038,30]
[381112858,1756050650529,-232.42214577,0.00038,30]
[381112859,1756050650539,-417.15472785,0.00038,30]
[381112860,1756050650548,-209.40437684,0.00038001,2]
[381112861,1756050650558,-500.0,0.00038264,5]
[381112862,1756050650568,-500.0,0.00038356,120]
[381112863,1756050650577,-300.0,0.00038356,120]
[381112864,1756050650586,-200.0,0.00038522,120]
[381112865,1756050650597,-3155.69,0.000386,14]
[381112866,1756050650606,-513.76003064,0.000387,120]
[381112867,1756050650618,-2066.48,0.000387,14]
[381112868,1756050650628,-270.05852784,0.00038892,32]
[381112869,1756050650638,-168.0,0.00039045,2]
[381112870,1756050650647,-168.0,0.00039069,2]
[381112871,1756050650657,-200.0,0.00039215,120]
[381112872,1756050650666,-200.0,0.00039318,120]
[381112873,1756050650676,-343.66276217,0.0003937,2]
[381112874,1756050650686,-200.0,0.0003938,51]
[381112875,1756050650695,-376.175457,0.00039452,120]
[381112876,1756050650705,-901.63231709,0.00039498,2]
[381112877,1756050650714,-2066.48,0.000395,14]
[381112878,1756050650724,-164.11,0.000395,7]
[381112879,1756050650734,-200.0,0.00039535,120]
[381112880,1756050650743,-200.0,0.00039625,120]
[381112881,1756050650753,-500.0,0.00039726,120]
[381112882,1756050650762,-155.0,0.000398,120]
[381112883,1756050650773,-500.0,0.000398,120]
[381112884,1756050650783,-1462.13225237,0.00039877,120]
[381112885,1756050650793,-6003.52422016,0.0003989,3]
[381112886,1756050650802,-1641.57688384,0.00039926,10]
[381112887,1756050650811,-277.6,0.0004,16]
[381112888,1756050650822,-516.0369149,0.0004,120]
[381112889,1756050650831,-527.03063825,0.0004,120]
[381112890,1756050650841,-271.75610474,0.0004,10]
[381112891,1756050650850,-450.60188138,0.0004,30]
[381112892,1756050650860,-422.39317301,0.0004,120]
[381112893,1756050650870,-23386.31028231,0.0004,120]
[381112894,1756050650879,-200.0,0.0004,120]
[381112895,1756050650889,-529.17068775,0.0004,120]
[381112896,1756050650899,-417.15472785,0.0004,120]
[381112897,1756050650910,-500.0,0.00040131,30]
[381112898,1756050650919,-500.0,0.00040278,5]
[381112899,1756050650930,-3155.69,0.000403,14]
[381112900,1756050650940,-168.0,0.00040378,2]
[381112901,1756050650950,-200.0,0.00040482,120]
[381112902,1756050650962,-200.0,0.000405,120]
[381112903,1756050650972,-200.0,0.000405,120]
[381112904,1756050650982,-200.0,0.000405,120]
[381112905,1756050650992,-270.05852784,0.00040619,36]
[381112906,1756050651001,-200.0,0.0004069,120]
[381112907,1756050651011,-200.0,0.00040889,120]
[381112908,1756050651021,-2066.48,0.00041,14]
[381112909,1756050651030,-165.0,0.00041,90]
[381112910,1756050651039,-161.0,0.00041,90]
[381112911,1756050651049,-500.0,0.00041095,120]
[381112912,1756050651058,-300.0,0.00041096,120]
[381112913,1756050651069,-453.59,0.00041096,120]
[381112914,1756050651080,-500.0,0.00041096,31]
[381112915,1756050651089,-500.0,0.00041096,31]
[381112916,1756050651098,-500.0,0.00041096,31]
[381112917,1756050651108,-500.0,0.00041096,31]
[381112918,1756050651119,-500.0,0.00041096,31]
[381112919,1756050651128,-500.0,0.00041096,31]
[381112920,1756050651138,-500.0,0.00041096,31]
[381112921,1756050651148,-500.0,0.00041096,31]
[381112922,1756050651157,-500.0,0.00041096,31]
[381112923,1756050651167,-500.0,0.00041096,31]
[381112924,1756050651176,-500.0,0.00041096,31]
[381112925,1756050651186,-500.0,0.00041096,31]
[381112926,1756050651195,-301.08101483,0.00041096,31]
[381112927,1756050651204,-500.0,0.00041096,31]
[381112928,1756050651214,-500.0,0.00041096,31]
[381112929,1756050651224,-161.68441,0.0004113,120]
[381112930,1756050651233,-200.0,0.00041201,120]
[381112931,1756050651243,-168.0,0.00041486,2]
[381112932,1756050651252,-168.0,0.00041664,2]
[381112933,1756050651262,-155.0,0.00042,120]
[381112934,1756050651272,-300.0,0.00042,120]
[381112935,1756050651284,-200.0,0.0004205,59]
[381112936,1756050651294,-200.0,0.00042086,120]
[381112937,1756050651303,-500.0,0.00042162,30]
[381112938,1756050651313,-200.0,0.00042285,120]
[381112939,1756050651322,-2066.48,0.000423,14]
[381112940,1756050651332,-6003.52422016,0.0004231,3]
[381112941,1756050651341,-225.39,0.0004233,120]
[381112942,1756050651351,-500.0,0.00042398,30]
[381112943,1756050651360,-500.0,0.00042465,120]
[381112944,1756050651370,-901.63231709,0.00042544,28]
[381112945,1756050651379,-500.0,0.00042555,30]
[381112946,1756050651389,-200.0,0.00042697,120]
[381112947,1756050651399,-200.0,0.000428,120]
[381112948,1756050651408,-168.0,0.00042829,2]
[381112949,1756050651417,-506.78,0.00043,120]
[381112950,1756050651427,-200.0,0.00043088,120]
[381112951,1756050651436,-161.0,0.00043151,90]
[381112952,1756050651445,-200.0,0.00043263,120]
[381112953,1756050651455,-200.0,0.00043313,120]
[381112954,1756050651464,-200.0,0.00043431,120]
[381112955,1756050651474,-200.0,0.00043435,120]
[381112956,1756050651484,-500.0,0.00043496,30]
[381112957,1756050651493,-250.0,0.00043835,2]
[381112958,1756050651502,-500.0,0.00043835,5]
[381112959,1756050651512,-750.0,0.00043835,8]
[381112960,1756050651522,-495.8337538,0.00043835,11]
[381112961,1756050651531,-1147.69,0.00043835,30]
[381112962,1756050651540,-500.0,0.00043835,120]
[381112963,1756050651550,-300.0,0.00043836,120]
[381112964,1756050651560,-200.0,0.00043901,120]
[381112965,1756050651570,-802.39395667,0.00044,120]
[381112966,1756050651580,-200.0,0.00044009,120]
[381112967,1756050651589,-155.0,0.000442,120]
[381112968,1756050651598,-200.0,0.00044233,120]
[381112969,1756050651609,-376.175457,0.00044384,120]
[381112970,1756050651621,-400.0,0.000444,120]
[381112971,1756050651631,-150.0,0.000444,10]
[381112972,1756050651641,-500.0,0.0004463,30]
[381112973,1756050651651,-200.0,0.0004473,66]
[381112974,1756050651660,-387.1230367,0.00044795,30]
[381112975,1756050651670,-387.1230367,0.00044795,30]
[381112976,1756050651681,-387.1230367,0.00044795,30]
[381112977,1756050651693,-387.1230367,0.00044795,30]
[381112978,1756050651702,-387.1230367,0.00044795,30]
[381112979,1756050651712,-339.0755678,0.00044795,30]
[381112980,1756050651721,-646.0,0.000449,30]
[381112981,1756050651731,-161.68441,0.00044909,20]
[381112982,1756050651741,-250.0,0.00044948,10]
[381112983,1756050651751,-861.85746889,0.00045,20]
[381112984,1756050651761,-487.47134008,0.00045,120]
[381112985,1756050651771,-205.3391842,0.00045,90]
[381112986,1756050651781,-1365.38805925,0.00045,120]
[381112987,1756050651791,-200.0,0.00045012,120]
[381112988,1756050651800,-200.0,0.000451,120]
[381112989,1756050651810,-484.279,0.00045114,2]
[381112990,1756050651820,-500.0,0.00045205,120]
[381112991,1756050651830,-200.0,0.00045236,120]
[381112992,1756050651839,-200.0,0.00045286,120]
[381112993,1756050651849,-164.0,0.00045308,90]
[381112994,1756050651859,-408.0,0.00045415,2]
[381112995,1756050651869,-150.0,0.00045415,2]
[381112996,1756050651879,-350.0,0.00045496,10]
[381112997,1756050651889,-200.0,0.00045505,120]
[381112998,1756050651899,-500.0,0.00045562,30]
[381112999,1756050651908,-153.0,0.00045726,30]
[381113000,1756050651918,-153.0,0.00045726,30]
[381113001,1756050651928,-306.0,0.00045726,30]
[381113002,1756050651937,-153.0,0.00045726,30]
[381113003,1756050651948,-153.0,0.00045726,30]
[381113004,1756050651958,-153.0,0.00045726,30]
[381113005,1756050651968,-161.0055628,0.00045753,30]
[381113006,1756050651977,-161.0055628,0.00045753,30]
[381113007,1756050651988,-579.9461967,0.00045753,30]
[381113008,1756050651998,-270.05852784,0.00045798,47]
[381113009,1756050652008,-200.0,0.00045883,120]
[381113010,1756050652018,-3155.69,0.00046,14]
[381113011,1756050652028,-450.0,0.00046044,10]
[381113012,1756050652038,-160.0,0.00046134,3]
[381113013,1756050652048,-200.0,0.00046202,120]
[381113014,1756050652057,-155.0,0.000464,120]
[381113015,1756050652074,-1000.0,0.00046575,120]
[381113016,1756050652085,-500.0,0.00046575,120]
[381113017,1756050652094,-300.0,0.00046575,120]
[381113018,1756050652104,-200.0,0.00046584,120]
[381113019,1756050652116,-200.0,0.00046584,120]
[381113020,1756050652126,-550.0,0.00046592,10]
[381113021,1756050652136,-1000.0,0.00046602,120]
[381113022,1756050652149,-1000.0,0.0004663,120]
[381113023,1756050652159,-1000.0,0.00046657,120]
[381113024,1756050652169,-1000.0,0.00046684,120]
[381113025,1756050652178,-1000.0,0.00046712,120]
[381113026,1756050652188,-6003.52422016,0.00046729,4]
[381113027,1756050652197,-200.0,0.00046731,120]
[381113028,1756050652206,-1000.0,0.00046739,120]
[381113029,1756050652215,-1000.0,0.00046767,120]
[381113030,1756050652225,-1000.0,0.00046794,120]
[381113031,1756050652235,-1000.0,0.00046821,120]
[381113032,1756050652244,-1000.0,0.00046849,120]
[381113033,1756050652254,-1000.0,0.00046876,120]
[381113034,1756050652263,-1000.0,0.00046904,120]
[381113035,1756050652273,-1000.0,0.00046931,120]
[381113036,1756050652283,-1000.0,0.00046958,120]
[381113037,1756050652292,-500.0,0.00046979,30]
[381113038,1756050652302,-1000.0,0.00046986,120]
[381113039,1756050652311,-774.2460734,0.00046986,30]
[381113040,1756050652320,-1000.0,0.00047013,120]
[381113041,1756050652331,-1000.0,0.00047041,120]
[381113042,1756050652340,-1000.0,0.00047068,120]
[381113043,1756050652351,-1000.0,0.00047095,120]
[381113044,1756050652360,-1000.0,0.00047123,120]
[381113045,1756050652370,-650.0,0.0004714,10]
[381113046,1756050652380,-480.88,0.0004715,120]
[381113047,1756050652390,-200.0,0.00047204,120]
[381113048,1756050652399,-160.950763,0.00047323,2]
[381113049,1756050652409,-167.11243922,0.00047387,120]
[381113050,1756050652419,-199.0,0.00047397,30]
[381113051,1756050652430,-200.0,0.000474,120]
[381113052,1756050652439,-204.0,0.0004741,74]
[381113053,1756050652449,-18010.5726605,0.00047477,4]
[381113054,1756050652459,-155.0,0.00047487,30]
[381113055,1756050652469,-155.0,0.00047487,30]
[381113056,1756050652479,-1763.0,0.00047487,30]
[381113057,1756050652488,-166.0,0.00047487,30]
[381113058,1756050652498,-166.0,0.00047487,30]
[381113059,1756050652507,-166.0,0.00047487,30]
[381113060,1756050652516,-166.0,0.00047487,30]
[381113061,1756050652526,-166.0,0.00047487,30]
[381113062,1756050652535,-166.0,0.00047487,30]
[381113063,1756050652545,-172.0,0.00047487,30]
[381113064,1756050652554,-155.0,0.00047487,30]